bitfinex/quotes_SOLUSD_20251115
["timestamp","ask_amount","ask_price","bid_price","bid_amount"]
[1763165747625,0.67,140.74,140.7,0.71]
[1763165748916,0.67,140.74,140.68,0.71]
[1763165749212,0.67,140.74,140.68,22.6512]
[1763165749394,0.67,140.74,140.68,23.3612]
[1763165750810,50.0,140.73,140.66,0.71]
[1763165751195,50.67,140.72,140.65,0.1]
[1763165751401,50.67,140.72,140.65,0.81]
[1763165751600,0.67,140.71,140.65,0.81]
[1763165751919,0.67,140.71,140.65,0.1]
[1763165752111,50.67,140.71,140.65,0.1]
[1763165752498,0.67,140.72,140.66,0.71]
[1763165756825,154.97,140.72,140.66,0.71]
[1763165757206,0.67,140.71,140.66,0.71]
[1763165758829,104.3,140.72,140.66,0.71]
[1763165759209,0.67,140.71,140.66,0.71]
[1763165760805,50.67,140.71,140.66,0.71]
[1763165761217,0.67,140.7,140.65,0.1]
[1763165761531,50.0,140.69,140.65,0.1]
[1763165761728,50.67,140.7,140.65,0.1]
[1763165761937,50.67,140.69,140.65,0.1]
[1763165762437,50.0,140.67,140.65,0.1]
[1763165762746,50.0,140.65,140.64,0.1]
[1763165763111,50.67,140.65,140.64,0.1]
[1763165764034,0.67,140.65,140.64,0.1]
[1763165764208,0.67,140.67,140.64,0.1]
[1763165764409,0.67,140.69,140.64,0.81]
[1763165764716,50.0,140.7,140.64,0.81]
[1763165764928,0.67,140.68,140.64,0.81]
[1763165766407,50.0,140.67,140.64,0.81]
[1763165766613,50.0,140.72,140.64,23.4612]
[1763165766833,50.67,140.76,140.68,22.6512]
[1763165767310,0.67,140.75,140.69,0.71]
[1763165767537,0.67,140.75,140.67,22.6512]
[1763165767538,100.67,140.75,140.67,22.6512]
[1763165768016,50.0,140.73,140.66,0.71]
[1763165768316,0.67,140.76,140.66,0.71]
[1763165769049,50.0,140.77,140.67,9.78882769]
[1763165769260,0.67,140.76,140.66,0.71]
[1763165769545,100.0,140.74,140.66,0.71]
[1763165769724,0.66,140.77,140.66,0.71]
[1763165769930,0.66,140.77,140.67,9.78882769]
[1763165770128,0.66,140.77,140.68,23.3412]
[1763165770527,0.66,140.77,140.69,0.69]
[1763165771950,9.93098926,140.81,140.69,0.69]
[1763165771951,50.66,140.85,140.74,9.93098926]
[1763165772129,0.66,140.85,140.77,22.6512]
[1763165772445,0.66,140.85,140.78,0.69]
[1763165773018,100.69,140.88,140.78,0.69]
[1763165773528,0.69,140.87,140.78,0.83216157]
[1763165773943,100.0,140.9,140.82,22.6512]
[1763165774124,0.69,140.89,140.82,22.6512]
[1763165774327,0.69,140.89,140.83,0.72]
[1763165775921,100.0,140.9,140.83,0.72]
[1763165776145,0.69,140.89,140.82,22.6512]
[1763165776456,0.69,140.89,140.82,23.3712]
[1763165776827,100.0,140.88,140.8,0.72]
[1763165777025,50.0,140.85,140.79,22.6512]
[1763165777537,50.0,140.85,140.7,28.4603083]
[1763165777538,0.69,140.84,140.71,9.93098926]
[1763165777751,50.0,140.83,140.74,0.72]
[1763165778058,100.0,140.87,140.74,0.86216157]
[1763165778359,0.69,140.88,140.78,22.6512]
[1763165778864,50.69,140.88,140.79,0.72]
[1763165779062,50.0,140.86,140.79,0.72]
[1763165779361,0.69,140.89,140.79,0.86216157]
[1763165780073,22.6512,140.87,140.72,9.59793656]
[1763165780236,50.0,140.83,140.65,1.99999999]
[1763165780436,50.0,140.83,140.73,0.72]
[1763165780437,0.69,140.82,140.73,0.72]
[1763165780641,50.69,140.84,140.75,22.6512]
[1763165781037,0.69,140.83,140.76,0.72]
[1763165781452,0.69,140.87,140.76,0.86216157]
[1763165781661,50.0,140.87,140.76,0.86216157]
[1763165781842,0.69,140.86,140.76,0.86216157]
[1763165782464,50.0,140.89,140.78,0.14216157]
[1763165782635,50.69,140.89,140.8,22.6512]
[1763165782954,0.69,140.88,140.8,22.6512]
[1763165783165,0.69,140.88,140.81,0.72]
[1763165784634,100.0,140.87,140.79,22.6512]
[1763165784851,0.69,140.86,140.79,22.6512]
[1763165785375,50.0,140.84,140.76,0.72]
[1763165785666,0.69,140.83,140.76,0.72]
[1763165787275,50.69,140.83,140.76,0.72]
[1763165787966,0.69,140.82,140.76,0.72]
[1763165788138,0.69,140.84,140.76,0.72]
[1763165789377,50.0,140.83,140.76,0.72]
[1763165789737,50.0,140.84,140.76,0.72]
[1763165789942,0.69,140.83,140.76,0.72]
[1763165790143,0.69,140.86,140.76,0.72]
[1763165790353,100.69,140.87,140.76,0.72]
[1763165790663,104.99,140.86,140.76,0.72]
[1763165791040,0.69,140.85,140.76,0.72]
[1763165791256,154.3,140.84,140.76,0.72]
[1763165791642,0.69,140.83,140.76,0.72]
[1763165791877,0.69,140.83,140.75,22.6512]
[1763165791878,50.69,140.83,140.75,22.6512]
[1763165792070,50.69,140.83,140.75,23.3712]
[1763165792261,50.0,140.81,140.74,22.6512]
[1763165792464,0.69,140.82,140.74,22.6512]
[1763165792645,50.69,140.82,140.74,22.6512]
[1763165792844,50.69,140.82,140.74,0.72]
[1763165793171,0.69,140.81,140.74,0.72]
[1763165794858,50.0,140.8,140.73,22.6512]
[1763165795072,50.69,140.81,140.7,0.72]
[1763165795073,50.0,140.78,140.7,0.72]
[1763165795372,0.69,140.77,140.7,0.72]
[1763165795577,0.69,140.77,140.7,23.3712]
[1763165796143,0.69,140.77,140.7,0.72]
[1763165796645,0.69,140.77,140.7,23.3712]
[1763165796948,0.69,140.77,140.7,0.72]
[1763165798851,50.0,140.76,140.68,0.72]
[1763165799260,9.93098926,140.79,140.67,22.6512]
[1763165799261,50.0,140.74,140.67,22.6512]
[1763165799446,50.0,140.74,140.65,0.72]
[1763165799646,0.69,140.73,140.65,23.3712]
[1763165799844,0.69,140.73,140.65,0.72]
[1763165800058,0.69,140.73,140.66,0.72]
[1763165800977,0.69,140.73,140.64,0.1]
[1763165801277,50.0,140.71,140.64,0.82]
[1763165801569,50.0,140.72,140.64,0.82]
[1763165801774,50.69,140.73,140.64,0.82]
[1763165801955,0.69,140.73,140.64,23.4712]
[1763165802274,0.69,140.72,140.64,23.4712]
[1763165802454,100.0,140.71,140.64,0.1]
[1763165802653,0.69,140.72,140.65,0.69]
[1763165803075,50.7,140.74,140.65,0.69]
[1763165803251,0.7,140.73,140.65,0.69]
[1763165804953,50.0,140.72,140.64,22.7512]
[1763165805172,100.0,140.72,140.64,0.79]
[1763165805373,0.7,140.71,140.64,0.79]
[1763165807453,105.0,140.71,140.64,0.79]
[1763165807961,104.3,140.74,140.64,0.93216157]
[1763165808171,105.0,140.74,140.64,0.93216157]
[1763165808388,105.0,140.74,140.65,0.69]
[1763165808699,105.0,140.74,140.67,22.6512]
[1763165808851,105.0,140.74,140.68,0.69]
[1763165809054,0.7,140.74,140.68,0.69]
[1763165809276,0.7,140.73,140.68,0.69]
[1763165809980,50.7,140.73,140.67,22.6512]
[1763165810489,0.7,140.72,140.67,22.6512]
[1763165810994,0.7,140.72,140.67,23.3412]
[1763165811973,0.7,140.72,140.67,22.6512]
[1763165812166,0.7,140.72,140.65,0.69]
[1763165812673,50.0,140.71,140.64,0.79]
[1763165812873,50.0,140.71,140.64,0.1]
[1763165813054,0.7,140.7,140.64,0.1]
[1763165814863,50.0,140.68,140.64,0.1]
[1763165815261,50.7,140.67,140.64,0.1]
[1763165815679,50.7,140.69,140.64,0.1]
[1763165815873,50.7,140.69,140.64,0.79]
[1763165816074,0.7,140.68,140.64,0.1]
[1763165816674,50.0,140.69,140.64,0.1]
[1763165816675,0.7,140.69,140.64,0.79]
[1763165816867,50.7,140.71,140.64,0.79]
[1763165817063,50.0,140.73,140.64,0.79]
[1763165817481,0.7,140.72,140.64,0.79]
[1763165820161,50.7,140.72,140.64,0.79]
[1763165820395,50.7,140.72,140.64,0.1]
[1763165820396,154.3,140.71,140.64,0.1]
[1763165820691,155.0,140.71,140.64,0.79]
[1763165820883,0.7,140.7,140.64,0.79]
[1763165821287,105.0,140.71,140.64,0.79]
[1763165821592,0.7,140.7,140.64,0.79]
[1763165823769,205.0,140.76,140.64,0.93216157]
[1763165824072,0.7,140.75,140.68,22.6512]
[1763165824278,154.3,140.76,140.69,0.69]
[1763165824474,50.0,140.76,140.69,0.69]
[1763165824796,50.7,140.81,140.73,22.6512]
[1763165825099,50.7,140.81,140.74,0.69]
[1763165825394,0.7,140.83,140.74,0.69]
[1763165826114,50.0,140.82,140.74,0.69]
[1763165826603,0.7,140.81,140.74,0.69]
[1763165829375,0.7,140.81,140.73,22.6512]
[1763165829580,0.7,140.81,140.73,23.3412]
[1763165829809,50.0,140.84,140.74,0.69]
[1763165830107,100.0,140.84,140.74,0.69]
[1763165830299,0.65,140.83,140.74,0.69]
[1763165831072,100.0,140.82,140.75,22.6512]
[1763165831497,50.0,140.8,140.75,22.6512]
[1763165831791,100.0,140.8,140.72,0.69]
[1763165831994,0.65,140.79,140.72,0.69]
[1763165832298,50.0,140.78,140.71,23.3412]
[1763165832471,50.65,140.78,140.71,23.3412]
[1763165832884,0.67,140.77,140.69,0.69]
[1763165833089,0.67,140.77,140.7,0.69]
[1763165834688,50.0,140.76,140.7,0.69]
[1763165835011,50.0,140.76,140.68,0.69]
[1763165835012,100.0,140.76,140.68,0.69]
[1763165835175,0.67,140.75,140.68,0.69]
[1763165835491,100.0,140.76,140.68,0.69]
[1763165835693,100.67,140.76,140.68,0.69]
[1763165835884,0.67,140.75,140.68,0.69]
[1763165836281,0.67,140.75,140.67,22.6512]
[1763165836282,50.0,140.74,140.67,22.6512]
[1763165836498,50.0,140.74,140.67,23.3412]
[1763165836699,0.67,140.73,140.67,0.69]
[1763165836906,0.67,140.73,140.67,23.3412]
[1763165837974,0.67,140.73,140.67,22.6512]
[1763165838772,0.67,140.73,140.67,23.3412]
[1763165841001,204.3,140.76,140.68,0.69]
[1763165841174,0.67,140.75,140.68,0.69]
[1763165841678,50.0,140.74,140.68,0.69]
[1763165841877,0.67,140.75,140.68,23.3412]
[1763165842188,154.97,140.76,140.68,23.3412]
[1763165842384,154.97,140.76,140.69,0.69]
[1763165842585,0.67,140.75,140.69,0.69]
[1763165846910,0.67,140.77,140.69,0.83216157]
[1763165847113,104.3,140.78,140.69,0.83216157]
[1763165848010,104.97,140.78,140.69,0.83216157]
[1763165848709,0.67,140.77,140.69,0.83216157]
[1763165851614,50.0,140.75,140.66,0.69]
[1763165851994,0.67,140.74,140.66,0.69]
[1763165852195,104.3,140.74,140.67,22.6512]
[1763165852516,104.3,140.74,140.68,0.69]
[1763165852707,0.67,140.76,140.71,22.6512]
[1763165852891,0.67,140.76,140.71,23.3412]
[1763165853507,0.67,140.76,140.71,22.6512]
[1763165853683,0.67,140.76,140.72,0.69]
[1763165855690,104.3,140.78,140.72,0.69]
[1763165855906,104.97,140.78,140.72,0.69]
[1763165856109,0.67,140.77,140.71,22.6512]
[1763165856297,0.67,140.77,140.71,23.3412]
[1763165856697,50.67,140.77,140.71,23.3412]
[1763165856918,0.67,140.76,140.71,23.3412]
[1763165857988,0.67,140.76,140.69,23.3412]
[1763165858619,0.67,140.76,140.7,0.69]
[1763165859699,0.67,140.76,140.69,22.6512]
[1763165859911,50.0,140.75,140.69,22.6512]
[1763165860117,50.0,140.75,140.67,23.3412]
[1763165860308,0.67,140.74,140.67,23.3412]
[1763165860630,104.3,140.78,140.67,23.3412]
[1763165860631,104.3,140.78,140.68,0.69]
[1763165860838,0.67,140.77,140.68,0.69]
[1763165861131,0.67,140.77,140.71,22.6512]
[1763165861495,50.67,140.77,140.71,22.6512]
[1763165861712,50.0,140.75,140.67,0.69]
[1763165861927,50.67,140.77,140.67,0.69]
[1763165862092,0.67,140.76,140.67,23.3412]
[1763165862601,0.67,140.76,140.68,0.69]
[1763165863425,104.3,140.78,140.72,22.6512]
[1763165863734,0.7,140.8,140.72,22.6512]
[1763165863892,0.7,140.8,140.73,0.66]
[1763165864090,50.7,140.8,140.69,32.58218926]
[1763165864305,50.7,140.8,140.72,0.66]
[1763165864519,0.7,140.79,140.72,0.66]
[1763165866116,50.0,140.82,140.72,0.66]
[1763165866302,0.7,140.81,140.72,0.66]
[1763165867191,0.7,140.83,140.76,22.6512]
[1763165867699,0.7,140.83,140.77,0.66]
[1763165868118,0.7,140.85,140.77,0.66]
[1763165868318,0.7,140.83,140.77,0.66]
[1763165869800,50.7,140.83,140.75,22.6512]
[1763165870008,50.7,140.83,140.75,23.3112]
[1763165870223,0.7,140.82,140.75,23.3112]
[1763165871196,0.7,140.82,140.75,22.6512]
[1763165871395,0.7,140.82,140.76,0.66]
[1763165876630,154.3,140.85,140.76,0.66]
[1763165876822,0.7,140.84,140.76,0.66]
[1763165877343,50.0,140.83,140.75,22.6512]
[1763165877526,100.0,140.83,140.75,23.3112]
[1763165877728,0.7,140.82,140.75,23.3112]
[1763165877940,0.7,140.82,140.76,0.66]
[1763165878134,0.7,140.84,140.76,0.66]
[1763165881557,104.3,140.85,140.77,22.6512]
[1763165881741,104.3,140.85,140.81,22.6512]
[1763165881931,0.7,140.87,140.82,0.66]
[1763165882867,100.7,140.87,140.79,0.66]
[1763165883062,0.7,140.86,140.79,0.66]
[1763165883234,0.7,140.86,140.78,22.6512]
[1763165883833,100.0,140.85,140.77,0.66]
[1763165884234,0.7,140.84,140.77,0.66]
[1763165884428,0.2,140.88,140.81,22.6512]
[1763165884734,50.9,140.88,140.81,22.6512]
[1763165885053,50.9,140.88,140.78,22.6512]
[1763165885054,50.0,140.86,140.78,22.6512]
[1763165885269,50.0,140.86,140.79,0.66]
[1763165885556,0.7,140.85,140.79,0.66]
[1763165886552,0.7,140.87,140.79,0.66]
[1763165886931,0.2,140.88,140.79,33.24218926]
[1763165887124,0.2,140.88,140.83,22.6512]
[1763165887566,0.9,140.88,140.84,0.66]
[1763165888558,0.2,140.88,140.84,0.66]
[1763165888756,0.9,140.88,140.84,0.66]
[1763165888954,0.2,140.88,140.84,0.66]
[1763165889462,0.9,140.88,140.84,0.66]
[1763165889850,0.9,140.88,140.82,23.3712]
[1763165890161,0.9,140.88,140.8,0.14216157]
[1763165890162,0.9,140.88,140.83,23.3712]
[1763165890664,0.9,140.88,140.83,22.6512]
[1763165890869,0.9,140.88,140.83,23.3712]
[1763165891685,0.9,140.88,140.84,0.72]
[1763165891846,0.2,140.88,140.84,0.72]
[1763165892966,0.2,140.88,140.87,22.6512]
[1763165893275,0.2,140.88,140.87,23.3412]
[1763165895770,0.2,140.88,140.87,0.69]
[1763165899765,0.2,140.88,140.85,0.72]
[1763165909053,0.2,140.88,140.83,32.44002769]
[1763165909054,0.2,140.88,140.86,0.72]
[1763165909268,0.2,140.88,140.87,9.93098926]
[1763165909663,0.2,140.88,140.87,10.65098926]
[1763165911269,0.2,140.88,140.87,17.74973278]
[1763165911454,0.2,140.88,140.87,10.65098926]
[1763165912462,0.2,140.88,140.87,17.74973278]
[1763165912956,0.2,140.88,140.87,10.65098926]
[1763165913793,0.2,140.88,140.87,17.74973278]
[1763165914394,0.2,140.9,140.89,53.96218926]
[1763165914580,0.2,140.92,140.91,11.93098925]
[1763165914762,0.2,140.92,140.91,12.65098925]
[1763165916259,0.2,140.92,140.91,19.74771765]
[1763165916691,0.2,140.96,140.95,32.58218926]
[1763165917089,0.2,140.96,140.95,33.30218926]
[1763165917671,0.2,140.96,140.95,35.30218925]
[1763165917890,0.2,140.96,140.95,33.30218926]
[1763165918100,0.2,140.96,140.95,0.14216157]
[1763165918268,0.2,140.96,140.92,0.72]
[1763165918467,1.38,140.96,140.89,0.14216157]
[1763165918776,0.88,140.96,140.85,0.14216157]
[1763165918968,0.68,140.95,140.86,0.72]
[1763165919179,0.68,140.95,140.94,22.6512]
[1763165919880,0.68,140.95,140.92,22.6512]
[1763165922082,0.68,140.95,140.87,0.14216157]
[1763165922288,0.68,140.95,140.92,22.6512]
[1763165922484,0.2,140.96,140.92,22.6512]
[1763165922697,0.2,140.96,140.92,23.3512]
[1763165922874,0.2,140.96,140.92,22.6512]
[1763165922875,0.92,140.96,140.92,22.6512]
[1763165923074,0.72,140.95,140.92,22.6512]
[1763165923796,0.2,140.96,140.92,23.3512]
[1763165923987,0.92,140.96,140.92,23.3512]
[1763165924981,0.92,140.96,140.93,9.93098926]
[1763165925192,0.2,140.96,140.93,9.93098926]
[1763165925393,0.92,140.96,140.93,9.93098926]
[1763165926105,0.72,140.95,140.94,22.6512]
[1763165926730,0.2,140.96,140.94,0.7]
[1763165926876,0.2,140.96,140.93,22.6512]
[1763165927300,0.2,140.96,140.94,0.7]
[1763165927708,0.2,140.96,140.93,22.6512]
[1763165927877,0.2,140.96,140.93,23.3512]
[1763165928720,0.2,140.96,140.94,10.63098926]
[1763165929297,0.2,140.96,140.95,33.28218926]
[1763165929879,0.2,140.96,140.92,0.7]
[1763165930074,0.92,140.96,140.93,9.78882769]
[1763165930401,0.92,140.96,140.89,0.7]
[1763165930604,0.72,140.95,140.89,9.78882769]
[1763165930985,0.72,140.95,140.92,22.6512]
[1763165931192,0.2,140.96,140.92,22.6512]
[1763165931410,0.72,140.95,140.92,22.6512]
[1763165932109,0.2,140.96,140.92,23.3512]
[1763165932413,0.2,140.96,140.95,22.6512]
[1763165932703,0.2,140.96,140.95,32.58218926]
[1763165932910,0.2,140.96,140.94,0.7]
[1763165933112,0.2,140.96,140.95,22.6512]
[1763165933308,0.92,140.96,140.95,22.6512]
[1763165938308,0.2,140.96,140.94,22.6512]
[1763165938525,0.72,140.95,140.94,22.6512]
[1763165940517,0.2,140.96,140.94,22.6512]
[1763165940707,0.92,140.96,140.94,22.6512]
[1763165941089,0.2,140.96,140.94,22.6512]
[1763165941297,0.92,140.96,140.94,22.6512]
[1763165941893,0.72,140.95,140.94,22.6512]
[1763165942297,0.2,140.96,140.94,22.6512]
[1763165942538,0.92,140.96,140.94,22.6512]
[1763165942859,0.2,140.96,140.94,22.6512]
[1763165943016,0.2,140.96,140.95,0.7]
[1763165943421,0.2,140.96,140.95,10.63098926]
[1763165946896,1.42,140.96,140.92,21.05686888]
[1763165947216,1.42,140.96,140.91,9.78882769]
[1763165947427,0.72,140.95,140.94,22.6512]
[1763165949175,0.7,140.96,140.94,23.3512]
[1763165949328,0.92,140.96,140.94,22.6512]
[1763165949528,0.2,140.96,140.94,23.3512]
[1763165949750,0.2,140.96,140.94,22.6512]
[1763165950349,0.2,140.96,140.94,23.3412]
[1763165950658,0.2,140.96,140.94,22.6512]
[1763165951540,0.2,140.96,140.95,0.69]
[1763165951858,0.2,140.96,140.94,22.6512]
[1763165952038,0.2,140.96,140.95,22.6512]
[1763165952234,1.96023942,140.97,140.96,9.78882769]
[1763165952458,1.96023942,140.97,140.96,10.47882769]
[1763165953055,1.96023942,140.97,140.96,10.62098926]
[1763165953831,0.2,141.03,141.02,22.79336157]
[1763165954166,0.2,141.03,141.02,22.6512]
[1763165955054,0.2,141.03,140.93,12.47882768]
[1763165955055,0.9,141.03,141.01,22.6512]
[1763165955445,0.2,141.03,141.02,0.7]
[1763165955660,0.9,141.03,141.01,22.6512]
[1763165955835,0.7,141.02,141.01,22.6512]
[1763165956034,0.2,141.03,141.01,22.6512]
[1763165956239,0.2,141.03,141.01,23.3512]
[1763165956639,0.2,141.03,141.02,9.93098926]
[1763165956845,0.2,141.03,141.02,10.63098926]
[1763165957551,0.2,141.03,141.0,0.7]
[1763165959462,0.2,141.03,140.98,33.28218926]
[1763165959761,0.2,141.03,141.02,22.6512]
[1763165960461,0.2,141.03,140.99,0.7]
[1763165960652,0.9,141.03,141.02,22.6512]
[1763165960847,0.2,141.03,141.02,22.6512]
[1763165961349,0.9,141.03,141.02,22.6512]
[1763165961660,0.9,141.03,140.97,0.14216157]
[1763165961856,0.9,141.03,140.97,10.63098926]
[1763165962536,0.9,141.03,140.97,9.93098926]
[1763165962758,0.2,141.03,141.02,22.6512]
[1763165963276,0.9,141.03,140.98,9.78882769]
[1763165963643,0.2,141.03,141.02,22.6512]
[1763165964254,0.9,141.03,141.02,22.6512]
[1763165964460,0.2,141.03,141.02,22.6512]
[1763165967066,0.2,141.03,141.02,32.58218926]
[1763165967360,0.2,141.03,141.02,33.28218926]
[1763165970867,0.2,141.03,141.02,54.91990488]
[1763165973563,0.2,141.03,141.02,54.21990488]
[1763165973778,0.9,141.03,141.02,54.21990488]
[1763165974161,0.2,141.03,141.02,54.21990488]
[1763165974369,0.2,141.03,141.02,54.91990488]
[1763165974573,0.2,141.03,141.02,54.21990488]
[1763165974760,0.2,141.03,141.0,0.7]
[1763165974960,0.2,141.03,141.01,9.78882769]
[1763165975175,0.9,141.03,140.99,0.14216157]
[1763165975386,0.9,141.03,141.0,22.6512]
[1763165975672,0.9,141.03,140.98,0.7]
[1763165975673,0.7,141.02,140.98,9.93098926]
[1763165975883,0.7,141.02,140.97,21.59126146]
[1763165976066,0.7,141.02,140.93,9.93098926]
[1763165976253,0.7,141.02,140.96,22.6512]
[1763165976863,0.7,141.02,140.93,0.14216157]
[1763165977261,0.7,141.02,140.95,22.6512]
[1763165977662,50.0,141.01,140.95,22.6512]
[1763165977885,0.7,141.0,140.95,22.6512]
[1763165978866,0.7,141.0,140.92,20.99153865]
[1763165979049,0.7,141.0,140.91,0.14216157]
[1763165979251,50.0,140.99,140.87,0.7]
[1763165979473,50.0,140.99,140.89,0.14216157]
[1763165979679,0.7,140.98,140.91,22.6512]
[1763165982580,0.7,140.98,140.91,23.3612]
[1763165982781,0.2,141.03,140.95,22.6512]
[1763165983082,0.67,141.02,140.95,22.6512]
[1763165984266,50.67,141.02,140.95,22.6512]
[1763165984485,50.67,141.02,140.9,0.71]
[1763165984697,50.0,141.0,140.91,22.6512]
[1763165985077,0.67,140.99,140.91,22.6512]
[1763165985405,0.67,140.99,140.89,9.78882769]
[1763165985557,0.67,140.99,140.89,10.49882769]
[1763165986061,0.67,140.99,140.92,22.6512]
[1763165986279,50.0,140.98,140.92,22.6512]
[1763165986677,0.67,140.97,140.9,22.6512]
[1763165990503,50.67,140.97,140.86,0.14216157]
[1763165990705,50.0,140.93,140.82,0.1]
[1763165991020,50.0,140.93,140.82,0.81]
[1763165991302,0.67,140.92,140.84,22.6512]
[1763165991597,0.67,140.92,140.82,0.81]
[1763165991598,50.67,140.92,140.82,0.81]
[1763165991793,50.67,140.91,140.82,0.81]
[1763165991991,50.67,140.91,140.83,22.6512]
[1763165992193,0.67,140.9,140.83,22.6512]
[1763165993177,0.67,140.9,140.84,23.3612]
[1763165993384,0.67,140.9,140.84,22.6512]
[1763165996009,100.0,140.95,140.85,0.71]
[1763165996190,0.67,140.91,140.85,0.85216157]
[1763165997307,0.67,140.91,140.84,22.6512]
[1763165997824,100.67,140.91,140.82,0.1]
[1763165998102,0.67,140.9,140.82,22.7512]
[1763165998406,0.67,140.9,140.82,0.1]
[1763165998606,0.67,140.9,140.82,22.7512]
[1763166000395,0.67,140.9,140.82,0.1]
[1763166000396,50.0,140.88,140.82,0.1]
[1763166000790,0.67,140.87,140.82,0.81]
[1763166000991,0.67,140.89,140.82,0.81]
[1763166001306,0.67,140.9,140.82,0.1]
[1763166001497,50.67,140.9,140.82,22.7512]
[1763166001679,0.67,140.9,140.83,22.6512]
[1763166001883,0.67,140.89,140.83,22.6512]
[1763166002100,0.67,140.89,140.83,23.3612]
[1763166002609,0.67,140.89,140.83,22.6512]
[1763166003707,50.0,140.94,140.84,0.85216157]
[1763166003894,50.0,140.95,140.84,0.85216157]
[1763166003895,0.67,140.91,140.84,0.85216157]
[1763166004306,0.67,140.91,140.82,0.1]
[1763166004607,0.67,140.91,140.82,0.81]
[1763166004995,0.67,140.91,140.82,10.74098926]
[1763166005492,0.67,140.91,140.85,22.6512]
[1763166006707,104.3,140.95,140.86,0.71]
[1763166006708,0.67,140.92,140.86,0.71]
[1763166008094,0.67,140.92,140.86,0.85216157]
[1763166010004,104.3,140.95,140.87,9.78882769]
[1763166010317,50.0,140.98,140.9,22.6512]
[1763166010487,0.72,140.95,140.9,22.6512]
[1763166010683,0.72,140.95,140.9,23.3612]
[1763166010907,0.72,140.98,140.91,0.85216157]
[1763166011209,0.72,141.0,140.91,0.85216157]
[1763166011709,0.72,141.0,140.93,22.6512]
[1763166012004,0.72,141.0,140.95,22.6512]
[1763166012420,0.72,141.02,140.96,0.71]
[1763166013914,0.72,141.02,140.96,0.85216157]
[1763166014122,0.2,141.03,140.98,22.6512]
[1763166014305,0.2,141.03,141.0,22.6512]
[1763166015012,0.2,141.03,141.0,23.3512]
[1763166015607,0.2,141.03,141.0,22.6512]
[1763166016521,0.2,141.03,141.01,0.7]
[1763166017109,50.2,141.11,141.02,9.78882769]
[1763166017412,50.2,141.11,141.09,22.6512]
[1763166017413,0.2,141.11,141.09,22.6512]